bitfinex/quotes_ETHUSD_20220201
["timestamp","ask_amount","ask_price","bid_price","bid_amount"]
[1643745452497,22.81028388,2759.9,2759.2,0.3]
[1643745452695,1.52918388,2759.8,2759.2,0.3]
[1643745452899,1.52918388,2760.0,2759.2,0.3]
[1643745453100,1.71028388,2759.9,2759.2,0.3]
[1643745453297,1.52918388,2759.8,2759.2,0.3]
[1643745453498,1.52918388,2759.7,2759.2,0.3]
[1643745453699,21.1,2759.9,2759.2,0.3]
[1643745453898,21.1,2759.7,2758.9,0.1811]
[1643745454142,21.1,2759.7,2758.8,6.7179]
[1643745454143,21.1,2759.5,2758.8,6.899]
[1643745454343,21.1,2759.5,2758.7,0.25]
[1643745454344,0.6952564,2759.1,2758.7,0.25]
[1643745454541,0.6952564,2759.1,2758.5,4.37368804]
[1643745454542,21.1,2758.9,2758.5,4.37368804]
[1643745454741,2.3409583,2758.8,2758.5,4.37368804]
[1643745454940,21.52575307,2758.7,2758.5,4.37368804]
[1643745455241,21.52575307,2758.7,2758.2,3.6715]
[1643745455440,21.52575307,2758.7,2757.7,11.87194355]
[1643745455441,21.52575307,2758.7,2757.7,11.5525]
[1643745455639,21.52575307,2758.7,2758.3,0.91357717]
[1643745455640,0.42575307,2758.7,2758.3,0.91357717]
[1643745455841,0.1812,2759.0,2758.3,0.91357717]
[1643745455842,0.1812,2758.6,2758.3,0.91357717]
[1643745456041,0.1812,2758.9,2758.3,0.91357717]
[1643745456245,0.1812,2758.9,2758.3,1.21357717]
[1643745456441,0.1812,2759.3,2758.3,1.21357717]
[1643745456840,1.52958311,2759.2,2758.3,1.21357717]
[1643745457041,0.1812,2759.1,2758.3,1.21357717]
[1643745457241,2.90052532,2759.7,2758.3,1.21357717]
[1643745457242,21.1,2759.2,2758.4,0.90646]
[1643745457443,22.62959275,2759.1,2758.3,0.91357717]
[1643745457642,0.1812,2759.0,2758.3,1.21357717]
[1643745457891,3.2099651,2759.1,2759.0,0.95147284]
[1643745458091,3.2099651,2759.1,2758.3,0.3]
[1643745458295,0.1812,2759.0,2758.2,0.6]
[1643745458796,0.1812,2759.0,2758.2,0.3]
[1643745458992,0.1812,2759.0,2758.7,0.79252243]
[1643745459793,21.2812,2759.0,2758.7,0.79252243]
[1643745459993,21.2812,2759.0,2758.1,3.01207]
[1643745460397,21.1,2758.8,2758.1,3.01207]
[1643745460595,21.2812,2758.8,2758.1,1.81287]
[1643745460794,21.2812,2758.8,2757.9,1.81307]
[1643745460795,21.1,2758.8,2757.9,1.81307]
[1643745461194,0.67899457,2758.7,2758.2,0.78729569]
[1643745461397,21.77899457,2758.7,2758.2,0.78729569]
[1643745463761,21.77899457,2758.7,2757.9,1.81307]
[1643745464563,21.77899457,2758.7,2757.8,3.8089]
[1643745464765,21.1,2758.5,2758.0,0.89958873]
[1643745465166,0.1812,2758.6,2758.0,0.89958873]
[1643745465401,21.1,2758.5,2758.0,0.89958873]
[1643745465696,0.1812,2758.6,2758.0,0.89958873]
[1643745465898,0.1812,2759.0,2758.0,1.19958873]
[1643745466094,1.52966228,2758.9,2758.0,1.19958873]
[1643745466293,0.1812,2758.8,2758.0,1.19958873]
[1643745466498,0.1812,2758.8,2758.1,0.90655]
[1643745466696,0.80522754,2758.6,2758.1,0.90655]
[1643745466895,0.1812,2759.0,2758.1,0.90655]
[1643745467093,0.1812,2759.0,2758.0,0.89958873]
[1643745467094,1.5296402,2758.9,2758.0,0.89958873]
[1643745467294,0.1812,2758.8,2758.0,0.89958873]
[1643745467495,21.1,2758.7,2758.0,0.89958873]
[1643745467696,1.0,2759.0,2758.0,0.89958873]
[1643745467697,0.1812,2758.6,2758.0,0.89958873]
[1643745467898,1.0,2759.0,2758.0,0.89958873]
[1643745467899,0.81623486,2758.7,2758.0,0.89958873]
[1643745468099,0.1812,2758.6,2758.0,0.89958873]
[1643745469645,0.17985088,2758.6,2758.0,0.89958873]
[1643745472992,0.17985088,2758.6,2758.0,1.65567861]
[1643745473194,0.1812,2759.1,2758.0,1.49958873]
[1643745473494,1.52961297,2759.0,2758.0,1.49958873]
[1643745473693,0.1812,2758.9,2758.0,1.49958873]
[1643745473893,0.1812,2759.1,2758.0,1.49958873]
[1643745474092,1.5296215,2759.0,2758.0,2.40608873]
[1643745474300,0.1812,2759.2,2758.0,2.40608873]
[1643745474301,2.14713859,2758.9,2758.0,0.9065]
[1643745474493,1.52968593,2758.8,2758.0,0.9065]
[1643745474694,0.1812,2758.7,2758.0,1.5065]
[1643745475197,21.53625266,2758.9,2757.9,1.31451076]
[1643745475198,0.76180961,2758.3,2757.9,1.1574]
[1643745475495,0.76180961,2758.3,2757.8,1.09314186]
[1643745475893,0.1812,2758.5,2757.8,0.79314186]
[1643745476093,2.48231629,2758.8,2757.8,0.79314186]
[1643745476294,1.52980785,2758.7,2757.8,0.79314186]
[1643745476549,0.1812,2758.6,2757.8,0.79314186]
[1643745476753,1.52980785,2758.5,2757.8,0.79314186]
[1643745476960,0.1812,2758.6,2757.9,0.90659]
[1643745477157,0.83537073,2758.6,2757.9,0.90659]
[1643745477656,21.93537073,2758.6,2757.9,0.90659]
[1643745478959,0.83537073,2758.6,2757.9,0.90659]
[1643745479559,0.1812,2758.8,2757.9,0.90659]
[1643745479758,1.52973847,2758.7,2757.9,0.90659]
[1643745480398,1.52973847,2758.7,2757.8,0.79314186]
[1643745480399,21.1,2758.6,2757.8,0.79314186]
[1643745480599,0.1812,2758.8,2757.9,0.9066]
[1643745480806,1.52977955,2758.7,2757.9,0.9066]
[1643745481002,0.1812,2758.6,2757.9,0.9066]
[1643745481203,0.1812,2758.8,2757.9,0.9066]
[1643745481406,1.52972129,2758.7,2757.9,0.9066]
[1643745481808,1.52972129,2758.7,2758.4,0.84864774]
[1643745482408,0.1812,2758.8,2758.4,0.84864774]
[1643745482609,0.1812,2759.1,2758.4,0.84864774]
[1643745482911,1.52960305,2759.0,2758.4,0.84864774]
[1643745483309,0.1812,2759.5,2758.4,2.05506774]
[1643745483310,0.1812,2759.3,2758.4,2.05506774]
[1643745483510,1.52949962,2759.2,2758.9,0.70022137]
[1643745483710,2.68306729,2759.5,2758.7,0.92544638]
[1643745483711,1.71069962,2759.1,2758.7,0.92544638]
[1643745483909,0.67993625,2759.7,2758.7,0.92544638]
[1643745483910,1.52949962,2759.0,2758.7,0.92544638]
[1643745484152,0.1812,2759.6,2758.7,0.92544638]
[1643745484349,1.52945715,2759.5,2758.7,0.92544638]
[1643745484549,0.1812,2759.4,2758.7,0.92544638]
[1643745484753,1.52945715,2759.3,2758.7,0.92544638]
[1643745484953,1.52945715,2759.3,2758.7,1.83177638]
[1643745485150,1.52945715,2759.2,2758.7,1.83177638]
[1643745485351,1.52945715,2759.1,2758.7,1.83177638]
[1643745485552,0.1812,2759.5,2758.7,1.83177638]
[1643745485750,1.52940787,2759.4,2758.7,1.83177638]
[1643745486251,0.8983334,2759.3,2758.7,1.83177638]
[1643745486454,1.52940787,2759.2,2758.7,1.83080561]
[1643745487055,1.52940787,2759.2,2758.7,2.73705521]
[1643745487458,21.2812,2759.5,2758.7,1.83080561]
[1643745487658,22.62950999,2759.4,2758.7,1.83080561]
[1643745487902,1.52950999,2759.3,2758.7,1.83080561]
[1643745488298,0.8387078,2759.2,2758.5,1.0875215]
[1643745488503,24.8288798,2759.1,2758.4,1.99379]
[1643745488699,24.8288798,2759.1,2758.3,3.1572]
[1643745488700,22.62950999,2759.0,2758.3,3.1572]
[1643745488900,1.52950999,2758.9,2758.3,3.1572]
[1643745489300,1.52950999,2758.9,2758.5,0.89838405]
[1643745489699,0.1812,2759.1,2758.5,0.89838405]
[1643745489700,1.52950999,2758.8,2758.5,0.89838405]
[1643745489905,0.1812,2759.1,2758.5,0.89838405]
[1643745490501,1.52959543,2759.0,2758.5,0.89838405]
[1643745491548,0.1812,2759.1,2758.5,0.89838405]
[1643745491748,1.5295645,2759.0,2758.5,0.89838405]
[1643745491951,0.84254572,2759.1,2758.5,0.89838405]
[1643745492149,1.52958889,2759.0,2758.5,0.89838405]
[1643745493152,1.52958889,2759.0,2758.4,0.90642]
[1643745494253,1.38313625,2759.5,2758.4,0.90642]
[1643745494254,1.52958889,2758.9,2758.4,0.90642]
[1643745494453,21.2812,2759.2,2758.5,0.3]
[1643745494752,21.2812,2759.2,2758.4,0.90642]
[1643745494753,1.52959558,2759.1,2758.4,0.90642]
[1643745495391,22.62959558,2759.1,2758.4,0.90642]
[1643745495594,1.52959558,2759.0,2758.4,0.90642]
[1643745496191,22.62959558,2759.0,2758.4,0.90642]
[1643745496395,0.7600874,2758.7,2758.3,0.55658666]
[1643745496592,1.52959558,2758.6,2758.3,0.55658666]
[1643745496792,0.1812,2758.9,2758.3,0.55658666]
[1643745496992,1.52968441,2758.8,2758.3,0.55658666]
[1643745497391,1.52968441,2758.7,2758.3,0.55658666]
[1643745497593,0.90317328,2758.8,2758.3,0.55658666]
[1643745497796,1.52965985,2758.7,2758.3,0.55658666]
[1643745498600,1.52965985,2758.7,2758.2,3.9762]
[1643745498601,22.62965985,2758.7,2758.2,3.9762]
[1643745498802,1.52965985,2758.6,2758.2,3.9762]
[1643745499049,1.52965985,2758.6,2758.1,0.145007]
[1643745499050,21.1,2758.5,2758.1,0.145007]
[1643745499245,1.52965985,2758.4,2758.1,0.145007]
[1643745499845,1.52965985,2758.3,2758.1,0.145007]
[1643745500045,21.1,2758.7,2758.1,0.145007]
[1643745500248,1.52981424,2758.6,2758.1,0.145007]
[1643745500645,0.3304641,2758.5,2758.1,0.145007]
[1643745500847,1.52981424,2758.4,2758.1,0.145007]
[1643745501746,21.1,2758.6,2758.1,0.145007]
[1643745501948,1.52980404,2758.5,2758.1,0.145007]
[1643745502148,22.62980404,2758.5,2758.1,0.145007]
[1643745502349,0.68039008,2758.3,2758.1,0.145007]
[1643745503004,21.1,2758.5,2758.1,0.145007]
[1643745503205,1.52985819,2758.4,2758.1,0.145007]
[1643745503402,1.52985819,2758.4,2757.9,0.87987603]
[1643745504206,0.1812,2759.0,2758.8,0.79727004]
[1643745504505,0.83549504,2759.4,2758.7,0.81521511]
[1643745504506,1.52971375,2758.9,2758.7,0.81521511]
[1643745504705,1.52971375,2758.8,2758.7,0.81521511]
[1643745504904,1.52971375,2759.2,2758.7,0.81521511]
[1643745507658,1.52971375,2759.2,2758.7,1.72152511]
[1643745510062,1.94255322,2759.5,2758.7,1.72152511]
[1643745510063,1.52971375,2759.1,2758.7,1.72152511]
[1643745510297,1.52971375,2759.0,2758.7,1.72152511]
[1643745510496,1.52971375,2758.9,2758.7,1.72152511]
[1643745510697,2.36094636,2759.5,2758.7,1.72152511]
[1643745510903,1.52954504,2759.4,2758.7,1.72152511]
[1643745512198,1.52954504,2759.4,2758.7,2.92777511]
[1643745513102,1.85543719,2759.4,2758.7,2.62777511]
[1643745513301,1.52954504,2759.3,2758.7,1.81256]
[1643745513702,1.52954504,2759.3,2758.7,1.957551]
[1643745513903,1.52954504,2759.3,2758.7,1.81256]
[1643745514453,0.75429571,2758.8,2758.6,0.1812]
[1643745514649,5.67954504,2758.7,2758.6,0.1812]
[1643745515248,5.67954504,2758.7,2758.2,3.0255]
[1643745515450,1.52954504,2758.6,2758.2,3.0255]
[1643745515848,1.52954504,2758.6,2758.1,3.8493]
[1643745516451,1.52954504,2758.6,2757.9,4.37368804]
[1643745517056,0.32616517,2758.5,2757.9,4.37368804]
[1643745517256,1.52954504,2758.4,2757.9,4.37368804]
[1643745518499,0.95258698,2758.3,2757.9,4.37368804]
[1643745518704,24.94846314,2758.2,2757.4,3.9623]
[1643745518901,2.05154504,2758.1,2757.4,3.9623]
[1643745519100,22.81074504,2758.0,2757.4,3.9623]
[1643745519300,1.52954504,2757.9,2757.4,3.9623]
[1643745519501,0.1812,2757.8,2757.4,3.9623]
[1643745519901,0.86931959,2757.8,2757.4,3.9623]
[1643745520101,0.86931959,2757.8,2757.2,1.02366202]
[1643745520102,0.68811959,2757.8,2757.2,0.77366202]
[1643745521306,0.68811959,2757.8,2757.1,0.90686]
[1643745521569,21.78811959,2757.8,2757.1,0.90686]
[1643745521956,21.1,2757.6,2756.9,3.2211]
[1643745522156,21.1,2757.6,2756.8,5.9329]
[1643745522157,25.04007183,2757.5,2756.8,5.9329]
[1643745522354,0.3292155,2757.2,2756.8,5.9329]
[1643745522756,0.67317048,2757.3,2756.8,0.9069]
[1643745522956,0.1812,2757.4,2756.8,0.9069]
[1643745523161,2.51849203,2757.8,2756.8,0.9069]
[1643745523361,1.53028398,2757.7,2756.8,0.9069]
[1643745523561,0.1812,2757.6,2756.8,0.9069]
[1643745523762,0.62128894,2757.6,2756.8,0.9069]
[1643745523963,0.1812,2757.6,2756.8,0.9069]
[1643745524161,0.1812,2757.8,2756.8,0.9069]
[1643745524361,1.08858332,2757.8,2757.1,1.67628669]
[1643745524762,1.08858332,2757.8,2757.1,0.90687]
[1643745524961,0.32919624,2757.6,2757.1,0.90687]
[1643745526211,1.08858332,2757.8,2757.1,0.90687]
[1643745527213,0.43848308,2757.5,2757.1,0.90687]
[1643745528112,1.08858332,2757.8,2757.1,0.90687]
[1643745529165,0.3298013,2757.7,2757.1,0.90687]
[1643745529363,1.08773191,2757.8,2757.1,0.90687]
[1643745529364,0.18034859,2757.8,2757.3,0.9067647]
[1643745529563,0.1812,2758.3,2757.5,0.9067]
[1643745529769,0.1812,2758.4,2757.5,0.9067]
[1643745529964,1.52998506,2758.3,2757.6,0.3]
[1643745530163,0.1812,2758.4,2757.6,0.3]
[1643745530362,0.1812,2758.4,2757.3,7.7539]
[1643745530363,0.41854779,2758.1,2757.3,7.7539]
[1643745530563,0.41854779,2758.1,2757.7,0.90664]
[1643745530963,0.1812,2758.2,2757.7,0.90664]
[1643745531162,21.1,2758.1,2757.7,0.90664]
[1643745531364,0.1812,2758.2,2757.7,0.90664]
[1643745532167,3.24211,2759.1,2757.7,0.90664]
[1643745532168,0.1812,2758.4,2757.7,0.90664]
[1643745532367,0.1812,2759.0,2757.8,0.6]
[1643745532568,1.52980944,2758.9,2758.0,1.8130439]
[1643745532795,5.62563625,2759.3,2758.0,2.1130439]
[1643745532796,1.52980944,2758.8,2758.0,2.1130439]
[1643745533002,1.52980944,2758.7,2758.0,2.1130439]
[1643745533304,1.52980944,2758.7,2758.2,0.92731145]
[1643745533305,0.32551767,2758.7,2758.2,0.92731145]
[1643745533502,1.52981131,2758.6,2758.2,0.92731145]
[1643745533703,0.1812,2758.8,2758.4,0.90648]
[1643745533903,1.5297704,2758.7,2758.4,0.90648]
[1643745534804,1.93793781,2758.7,2758.4,0.90648]
[1643745535003,0.40816741,2758.7,2758.4,0.90648]
[1643745535202,0.1812,2758.8,2758.4,0.90648]
[1643745535405,1.52977557,2758.7,2758.4,0.90648]
[1643745535804,2.38795501,2759.1,2758.4,0.90648]
[1643745536004,22.62977438,2759.0,2758.3,1.81293]
[1643745536204,0.41928225,2758.4,2758.3,1.81293]
[1643745536404,21.1,2758.8,2758.3,1.81293]
[1643745536655,1.71104201,2758.7,2758.3,1.81293]
[1643745536856,0.1812,2758.7,2758.3,1.81293]
[1643745537556,0.54493007,2758.7,2758.3,1.81293]
[1643745537758,0.36373007,2758.7,2758.3,1.81293]
[1643745537961,1.52984447,2758.6,2758.3,1.81293]
[1643745538660,1.52984447,2758.6,2757.9,1.81311]
[1643745538863,0.88489413,2758.4,2758.0,0.90662]
[1643745539061,24.82225439,2758.3,2757.9,1.81311]
[1643745539261,21.1,2758.1,2757.3,5.1268689]
[1643745539460,21.2812,2758.1,2757.3,3.9701]
[1643745539775,1.53013974,2758.0,2757.3,3.9701]
[1643745539963,0.41065541,2757.6,2757.3,5.78361]
[1643745540166,0.41065541,2757.6,2757.3,0.1812]
[1643745540415,0.1812,2757.5,2757.3,0.1812]
[1643745541217,0.1812,2757.6,2757.1,0.90695]
[1643745541417,0.1812,2757.6,2757.2,0.6787854]
[1643745541617,0.1812,2757.6,2757.1,0.90695]
[1643745542217,1.084,2757.4,2756.9,3.00963]
[1643745542426,24.41803335,2757.4,2756.9,1.43503156]
[1643745542620,1.084,2757.4,2756.9,1.43503156]
[1643745543021,1.084,2757.0,2756.9,1.43503156]
[1643745546756,1.084,2757.0,2756.8,0.90691]
[1643745547158,1.084,2757.0,2756.1,0.25]
[1643745547159,21.1,2756.7,2756.1,0.25]
[1643745547356,1.084,2756.6,2756.0,0.1812]
[1643745547561,1.084,2756.6,2755.8,3.62754]
[1643745547562,1.084,2756.6,2755.9,2.0911148]
[1643745547795,25.784,2756.6,2755.9,2.0911148]
[1643745548401,22.184,2756.6,2755.9,2.0911148]
[1643745548598,1.084,2756.6,2755.9,2.0911148]
[1643745549003,1.084,2756.6,2756.0,1.62080441]
[1643745550004,1.79446102,2756.6,2756.0,1.62080441]
[1643745550206,1.97586102,2756.6,2756.0,1.62080441]
[1643745550601,1.79446102,2756.6,2756.0,0.90724]
[1643745551209,22.89446102,2756.6,2756.0,0.90724]
[1643745551404,1.79446102,2756.6,2756.0,0.90724]
[1643745552048,1.79446102,2756.6,2755.9,2.0911148]
[1643745552049,2.31646102,2756.6,2755.9,2.0911148]
[1643745552652,23.41646102,2756.6,2755.9,2.0911148]
[1643745553353,2.31646102,2756.6,2756.0,0.90722]
[1643745553853,2.61646102,2756.6,2756.0,0.90722]
[1643745554252,2.61646102,2756.6,2756.1,0.76193278]
[1643745554451,22.706,2756.6,2756.0,0.90722]
[1643745554653,22.706,2756.6,2755.9,1.9097148]
[1643745554654,23.006,2756.6,2755.9,1.9097148]
[1643745554852,22.706,2756.6,2755.9,1.9097148]
[1643745555503,23.006,2756.6,2755.9,1.9097148]
[1643745556400,23.306,2756.6,2755.9,1.9097148]
[1643745556704,7.934,2756.0,2755.9,1.9097148]
[1643745556899,7.934,2756.0,2755.9,0.27656219]
[1643745556900,31.94744736,2756.0,2755.9,0.27656219]
[1643745557099,31.94744736,2756.0,2755.9,6.219e-05]
[1643745557305,32.94744736,2756.0,2755.9,6.219e-05]
[1643745557504,30.556,2756.0,2755.9,6.219e-05]
[1643745557706,23.706,2756.0,2755.9,6.219e-05]
[1643745557904,22.706,2756.0,2755.9,6.219e-05]
[1643745558107,1.606,2756.0,2755.9,6.219e-05]
[1643745558305,25.00525993,2756.0,2755.9,6.219e-05]
[1643745558503,22.706,2756.0,2755.9,6.219e-05]
[1643745558706,23.706,2756.0,2755.9,6.219e-05]
[1643745559551,1.606,2756.0,2755.9,6.219e-05]
[1643745560756,1.084,2756.0,2755.9,6.219e-05]
[1643745564218,22.184,2756.0,2755.9,6.219e-05]
[1643745564617,1.084,2756.0,2755.9,6.219e-05]
[1643745565618,5.334,2756.0,2755.9,6.219e-05]
[1643745569626,1.084,2755.8,2755.3,0.5303325]
[1643745569827,1.084,2755.8,2755.1,1.1814]
[1643745569828,24.39186356,2755.8,2755.1,1.1814]
[1643745570034,24.39186356,2755.8,2755.1,1.0]
[1643745570035,1.084,2755.6,2755.1,1.0]
[1643745570227,1.084,2755.4,2755.1,1.0]
[1643745571829,1.2527,2755.5,2755.1,1.0]
[1643745571831,1.084,2755.2,2755.1,1.0]
[1643745572030,1.606,2755.2,2755.1,1.0]
[1643745572827,2.606,2755.2,2755.1,1.0]
[1643745573027,23.706,2755.2,2755.1,1.0]
[1643745573428,23.8874,2755.2,2755.1,1.0]
[1643745573633,1.084,2755.0,2753.8,0.1814]
[1643745573831,5.85,2755.1,2753.8,0.1814]
[1643745573832,1.084,2754.8,2753.8,0.1814]
[1643745574052,1.606,2754.7,2753.8,0.1814]
[1643745574251,1.084,2754.4,2753.4,0.1884]
[1643745574455,1.084,2754.2,2753.4,0.1884]
[1643745574654,1.606,2754.2,2753.8,0.7183605]
[1643745574854,1.606,2754.2,2753.4,0.007]
[1643745575055,1.084,2754.0,2753.4,0.007]
[1643745575255,22.184,2754.0,2753.4,0.007]
[1643745575560,1.084,2753.8,2753.4,0.007]
[1643745575755,1.084,2753.6,2753.4,0.007]
[1643745575953,1.606,2753.6,2753.4,0.007]
[1643745576355,21.1,2753.8,2753.4,0.007]
[1643745576356,1.63336423,2753.8,2753.4,0.007]
[1643745576659,0.1815,2754.5,2753.8,6.85]
[1643745576861,1.20193625,2755.8,2754.6,0.01264239]
[1643745577065,2.46230785,2756.2,2754.1,5.85828557]
[1643745577066,0.03792716,2754.5,2754.1,5.85828557]
[1643745577258,1.53172243,2755.7,2754.2,7.21253]
[1643745577462,0.1814,2756.2,2755.0,0.90746]
[1643745577662,0.1814,2756.2,2755.6,0.74906506]
[1643745577663,1.53140197,2756.1,2755.6,0.74906506]
[1643745577934,0.1814,2756.5,2755.6,0.74906506]
[1643745578135,1.53130219,2756.4,2755.6,0.74906506]
[1643745578432,0.1814,2756.3,2755.6,0.74906506]
[1643745578635,0.1814,2756.6,2755.6,0.74906506]
[1643745578837,1.86162789,2756.5,2755.6,0.74906506]
[1643745579037,1.71262865,2756.4,2755.6,1.65634506]
[1643745579232,1.53122865,2756.3,2755.6,1.65634506]
[1643745579534,0.1814,2756.2,2755.6,1.65634506]
[1643745579832,0.1814,2756.2,2755.6,2.56359506]
[1643745580031,0.1814,2756.4,2755.7,0.35926774]
[1643745580233,1.53126039,2756.3,2755.7,0.35926774]
[1643745580433,0.1814,2756.2,2755.6,2.56359506]
[1643745580636,0.1814,2756.4,2755.6,2.56359506]
[1643745580833,1.53124275,2756.3,2755.6,2.56359506]
[1643745581339,1.53124275,2756.3,2755.6,1.08969514]
[1643745582757,1.53124275,2756.3,2755.6,0.74906506]
[1643745583264,0.1814,2756.2,2755.6,0.74906506]
[1643745583460,1.53124275,2756.1,2755.6,0.74906506]
[1643745583863,0.1814,2756.4,2755.6,1.06991154]
[1643745584060,1.53121058,2756.3,2755.6,1.06991154]
[1643745584261,0.1814,2756.2,2755.6,1.97720154]
[1643745584461,2.5537426,2757.0,2755.6,1.97720154]
[1643745584462,0.1814,2756.7,2755.6,1.97720154]
[1643745584762,1.53119445,2756.6,2755.6,1.97720154]
[1643745585061,0.1814,2756.5,2755.6,1.97720154]
[1643745585311,1.53119445,2756.4,2755.6,1.97720154]
[1643745585721,1.53119445,2756.3,2756.1,0.86331487]
[1643745585917,1.53119445,2756.2,2756.1,0.86331487]
[1643745586124,1.53119445,2756.2,2755.4,1.3196]
[1643745586321,3.78347679,2756.1,2755.4,0.1814]
[1643745586523,1.71259445,2756.0,2755.0,0.1814]
[1643745586719,3.99290086,2755.9,2754.9,1.99619]
[1643745586919,3.99290086,2755.9,2754.8,0.06180003]
[1643745586920,1.71259445,2755.8,2754.8,0.06180003]
[1643745587223,0.3780069,2755.5,2754.9,0.83542283]
[1643745587419,1.53119445,2755.4,2754.9,0.83542283]
[1643745587618,1.53119445,2755.3,2754.9,0.83542283]
[1643745587820,0.1814,2755.6,2754.8,0.06180003]
[1643745587821,2.38193625,2755.6,2754.8,0.06180003]
[1643745588024,21.1,2755.4,2754.7,0.145186]
[1643745588223,4.35909712,2755.3,2754.7,0.145186]
[1643745588421,1.53164424,2755.2,2754.3,0.25]
[1643745588621,1.53164424,2755.2,2753.7,7.41544551]
[1643745588622,0.31919621,2754.5,2753.7,7.41544551]
[1643745588821,0.31919621,2754.5,2753.7,3.72784551]
[1643745589075,2.7088551,2755.1,2753.9,0.74816197]
[1643745589257,1.5318917,2755.0,2753.9,0.74816197]
[1643745589456,2.64002967,2754.9,2753.9,0.74816197]
[1643745589657,1.5318917,2754.8,2753.9,0.74816197]
[1643745590059,2.31331183,2754.7,2753.7,0.1814]
[1643745590261,1.7132917,2754.6,2753.5,1.352]
[1643745590457,4.13842668,2754.5,2753.5,1.352]
[1643745590657,2.42273753,2754.4,2753.5,1.352]
[1643745590858,2.42273753,2754.4,2753.5,0.1814]
[1643745590859,0.1814,2754.4,2753.5,0.1814]
[1643745591158,0.1814,2754.4,2753.9,0.8616147]
[1643745591358,0.4814,2754.6,2753.9,0.8616147]
[1643745591562,2.70532941,2754.6,2753.5,0.1814]
[1643745591958,0.4814,2754.6,2753.5,0.1814]
[1643745592457,2.73137339,2754.6,2753.5,0.1814]
[1643745592913,0.41996833,2754.3,2753.6,0.672591]
[1643745593112,0.16140728,2754.7,2753.7,3.25]
[1643745593311,1.71355849,2754.6,2753.7,3.25]
[1643745593511,1.53205849,2754.5,2753.7,3.25]
[1643745593713,0.1814,2754.4,2753.7,3.25]
[1643745594115,0.32250953,2754.5,2753.7,3.25]
[1643745594311,0.1814,2754.4,2753.7,4.15798]
[1643745595213,0.68486454,2754.2,2753.7,0.90798]
[1643745595417,0.68486454,2754.2,2753.4,0.007]
[1643745596015,0.68486454,2754.2,2753.5,0.145255]
[1643745596216,0.68486454,2754.2,2753.4,0.007]
[1643745596414,0.38497287,2753.8,2753.4,0.75839939]
[1643745596657,0.68486454,2754.2,2753.4,0.75839939]
[1643745596854,0.98486454,2754.2,2753.4,0.75839939]
[1643745597863,0.98486454,2754.2,2753.4,0.007]
[1643745598065,0.98486454,2754.2,2753.3,0.1674]
[1643745598066,6.85,2754.0,2753.3,0.1674]
[1643745598264,3.05428907,2753.9,2753.3,0.1674]
[1643745598464,1.7034,2753.9,2753.3,0.1674]
[1643745598663,1.0034,2753.9,2753.3,0.1674]
[1643745598863,0.83607275,2753.7,2753.3,0.1674]
[1643745599063,0.83607275,2753.7,2753.1,0.1]
[1643745599268,0.33477922,2753.8,2753.1,0.1]
[1643745599465,2.3710712,2753.7,2753.1,0.1]
[1643745599663,0.1814,2753.6,2753.1,0.1]
[1643745600162,1.15677922,2753.8,2753.1,0.1]
[1643745600163,0.4814,2753.7,2753.1,0.1]
[1643745600417,0.94160068,2753.6,2753.1,0.1]
[1643745600818,1.53260705,2753.5,2753.1,0.1]
[1643745601014,0.1816,2753.4,2753.1,0.1]
[1643745601418,0.43605019,2753.3,2753.1,0.1]
[1643745601618,0.61765019,2753.3,2753.1,0.1]
[1643745602320,0.61765019,2753.3,2753.2,0.03786615]
[1643745602321,0.91765019,2753.3,2753.2,0.03786615]
[1643745603321,4.76765019,2753.3,2753.2,0.03786615]
[1643745603520,4.58605019,2753.3,2753.2,0.03786615]
[1643745603720,0.1816,2753.5,2753.2,0.03786615]
[1643745603921,0.1816,2753.5,2753.1,0.1]
[1643745604171,0.522,2753.8,2753.4,0.03786615]
[1643745604172,0.1816,2753.7,2753.4,0.03786615]
[1643745604380,0.1816,2753.7,2753.1,0.1]
[1643745604977,0.40452211,2753.7,2753.1,0.1]
[1643745605177,0.522,2754.1,2753.1,0.1]
[1643745605380,0.1814,2754.0,2753.1,0.1]
[1643745605578,21.1,2754.4,2753.7,0.03786615]
[1643745605579,0.1814,2754.2,2753.7,0.03786615]
[1643745605782,0.1814,2754.2,2753.1,0.1]
[1643745605980,0.1814,2754.3,2753.1,0.1]
[1643745606384,0.1814,2754.3,2753.1,1.00811]
[1643745606581,1.1375,2754.9,2753.1,1.00811]
[1643745606582,0.1814,2754.6,2753.3,1.81601]
[1643745606779,0.1814,2754.7,2753.4,2.62135343]
[1643745606982,21.1,2755.0,2753.3,1.81601]
[1643745606983,1.53198752,2754.6,2753.3,1.81601]
[1643745607179,0.32109865,2754.4,2754.1,0.03786615]
[1643745607379,0.32109865,2754.4,2753.6,0.33138236]
[1643745607579,0.32109865,2754.4,2753.4,0.90799]
[1643745607817,0.32109865,2754.4,2753.7,0.145242]
[1643745608017,0.7507513,2754.6,2753.7,0.145242]
[1643745608217,0.7507513,2754.6,2753.5,2.61463671]
[1643745608417,0.7507513,2754.6,2753.5,0.1814]
[1643745608619,1.53204652,2754.5,2754.0,0.03786615]
[1643745609120,0.1814,2754.9,2753.7,0.90798]
[1643745609320,1.53193463,2754.8,2754.3,0.724604]
[1643745609525,1.71333463,2754.7,2754.3,0.724604]
[1643745609826,2.05393463,2754.6,2754.3,0.724604]
[1643745610023,2.05393463,2754.6,2754.1,0.724604]
[1643745610024,6.85,2754.2,2754.1,0.724604]
[1643745610223,10.38533463,2754.2,2754.1,0.724604]
[1643745610623,11.65405326,2754.2,2754.1,0.724604]
[1643745610823,0.7246,2754.1,2753.3,0.25]
[1643745611025,0.7246,2754.1,2753.1,0.1]
[1643745611026,0.1814,2754.0,2753.1,0.1]
[1643745611323,2.01333463,2754.0,2753.1,0.1]
[1643745611572,2.05393463,2753.9,2753.1,0.1]
[1643745611760,2.05393463,2753.9,2753.6,0.03786615]
[1643745611761,1.71333463,2753.8,2753.6,0.03786615]
[1643745611960,2.36906405,2753.7,2753.1,0.1]
[1643745612164,0.72662773,2753.5,2753.1,0.1]
[1643745612564,0.1814,2753.6,2753.1,0.1]
[1643745612766,0.1814,2754.3,2753.1,0.1]